bitfinex/quotes_SOLUSD_20250710
["timestamp","ask_amount","ask_price","bid_price","bid_amount"]
[1752155364522,6.3622669,157.18,157.13,0.72]
[1752155364716,22.26759836,157.18,157.12,0.1]
[1752155364938,22.26759836,157.18,157.17,10.18044021]
[1752155364939,6.3622669,157.18,157.17,10.18044021]
[1752155365237,6.36184429,157.19,157.17,10.18044021]
[1752155365432,6.36184429,157.19,157.18,10.18044021]
[1752155365813,26.0,157.21,157.18,10.18044021]
[1752155366028,6.36010939,157.23,157.2,10.18044021]
[1752155366234,6.36010939,157.23,157.22,10.18044021]
[1752155366619,6.35930047,157.25,157.22,10.18044021]
[1752155366833,6.35930047,157.25,157.23,10.18044021]
[1752155367142,0.69,157.24,157.18,0.72]
[1752155367640,26.0,157.16,157.12,0.1]
[1752155367831,0.69,157.15,157.12,0.1]
[1752155368017,6.36375206,157.14,157.12,10.28044021]
[1752155368219,7.05375206,157.14,157.12,0.1]
[1752155368629,0.69,157.13,157.12,0.1]
[1752155369341,16.54419227,157.14,157.12,0.1]
[1752155369342,6.36375206,157.14,157.12,0.1]
[1752155370014,0.69,157.13,157.12,0.1]
[1752155370441,6.36375206,157.14,157.12,0.1]
[1752155370941,7.05375206,157.14,157.12,0.1]
[1752155371551,0.69,157.13,157.12,0.1]
[1752155372146,7.05415706,157.13,157.12,0.1]
[1752155372436,17.23459727,157.13,157.12,0.1]
[1752155372635,7.05415706,157.13,157.12,0.1]
[1752155374339,17.23459727,157.13,157.12,0.1]
[1752155374941,7.05415706,157.13,157.12,0.1]
[1752155375249,92.9871515,157.13,157.09,0.1]
[1752155375455,6.36415706,157.13,157.09,0.82]
[1752155375754,6.36415706,157.13,157.11,10.18044021]
[1752155375939,6.36415706,157.13,157.1,0.72]
[1752155376136,0.69,157.12,157.09,0.1]
[1752155376332,0.69,157.11,157.09,0.1]
[1752155377149,0.69,157.1,157.09,0.1]
[1752155378028,59.7,157.12,157.09,10.28044021]
[1752155378352,6.36496722,157.11,157.09,0.1]
[1752155378648,6.36415706,157.13,157.09,0.82]
[1752155378839,6.36415706,157.13,157.11,10.18044021]
[1752155379040,6.36415706,157.13,157.12,10.18044021]
[1752155379557,6.36415706,157.13,157.11,10.18044021]
[1752155380555,6.36375206,157.14,157.11,10.18044021]
[1752155380758,7.05375206,157.14,157.11,10.18044021]
[1752155381050,7.05375206,157.14,157.09,0.1]
[1752155381263,7.05375206,157.14,157.1,10.18044021]
[1752155381557,7.05375206,157.14,157.11,10.18044021]
[1752155382535,10.18044021,157.15,157.11,0.72]
[1752155382536,6.36334712,157.15,157.11,0.72]
[1752155382735,6.36334712,157.15,157.12,10.18044021]
[1752155383540,6.36334712,157.15,157.12,0.72]
[1752155383856,6.36334712,157.15,157.13,10.18044021]
[1752155384047,6.36334712,157.15,157.12,0.72]
[1752155384048,6.36172784,157.19,157.14,10.90044021]
[1752155384251,6.3614862,157.2,157.18,10.18044021]
[1752155384461,1.6268,157.24,157.19,10.90044021]
[1752155384670,6.3597049,157.24,157.21,10.18044021]
[1752155385170,7.0497049,157.24,157.2,10.18044021]
[1752155385742,0.69,157.23,157.2,10.18044021]
[1752155386554,6.36045926,157.23,157.2,10.18044021]
[1752155387545,6.3597049,157.24,157.2,10.18044021]
[1752155387864,7.0497049,157.24,157.21,10.18044021]
[1752155388238,7.0497049,157.24,157.2,10.18044021]
[1752155388438,16.54014511,157.24,157.2,10.18044021]
[1752155388640,16.54014511,157.24,157.13,0.72]
[1752155388641,26.0,157.2,157.13,0.72]
[1752155388870,10.18044021,157.19,157.15,10.18044021]
[1752155389041,10.18044021,157.19,157.14,10.18044021]
[1752155389255,59.7,157.2,157.15,10.18044021]
[1752155389256,0.67,157.18,157.15,10.18044021]
[1752155389455,59.7,157.2,157.15,10.18044021]
[1752155389456,70.55044021,157.2,157.15,10.18044021]
[1752155389662,6.36172784,157.19,157.15,10.18044021]
[1752155389868,7.03172784,157.19,157.15,10.18044021]
[1752155391058,0.67,157.18,157.15,10.18044021]
[1752155391257,0.67,157.18,157.14,10.18044021]
[1752155391658,0.67,157.18,157.13,0.72]
[1752155391967,6.36253737,157.17,157.15,10.18044021]
[1752155392371,6.36253737,157.17,157.13,0.72]
[1752155392572,7.03253737,157.17,157.13,10.18044021]
[1752155393571,7.03253737,157.17,157.14,10.18044021]
[1752155394453,6.36253737,157.17,157.14,10.18044021]
[1752155394655,16.57322454,157.21,157.16,10.18044021]
[1752155394849,41.85201897,157.28,157.2,10.18044021]
[1752155394850,0.67,157.25,157.2,10.18044021]
[1752155395079,6.3597049,157.24,157.21,10.18044021]
[1752155395280,6.3597049,157.24,157.2,10.87044021]
[1752155395452,6.3597049,157.24,157.2,10.18044021]
[1752155396064,7.0297049,157.24,157.2,10.18044021]
[1752155396275,0.67,157.23,157.2,10.18044021]
[1752155397488,6.36051392,157.22,157.2,10.18044021]
[1752155397883,6.36051392,157.22,157.19,10.18044021]
[1752155398178,0.67,157.21,157.18,10.18044021]
[1752155398375,32.44223895,157.22,157.17,10.18044021]
[1752155398580,0.67,157.21,157.17,10.18044021]
[1752155399462,6.36132315,157.2,157.17,10.18044021]
[1752155399660,6.36132315,157.2,157.18,10.18044021]
[1752155400175,6.36132315,157.2,157.17,0.69]
[1752155400397,6.36132315,157.2,157.18,10.18044021]
[1752155400582,6.36132315,157.2,157.19,10.18044021]
[1752155400780,6.36051392,157.22,157.19,10.18044021]
[1752155400968,6.36051392,157.22,157.2,10.18044021]
[1752155401879,6.36051392,157.22,157.19,10.18044021]
[1752155402197,6.36051392,157.22,157.2,10.18044021]
[1752155402359,6.36051392,157.22,157.17,0.69]
[1752155402557,0.67,157.21,157.15,0.69]
[1752155402777,0.67,157.21,157.17,10.18044021]
[1752155403160,6.36051392,157.22,157.18,10.18044021]
[1752155403559,22.93179874,157.22,157.18,10.18044021]
[1752155403779,0.67,157.21,157.18,10.18044021]
[1752155403984,32.44223895,157.22,157.17,10.18044021]
[1752155404195,0.67,157.2,157.16,10.18044021]
[1752155404381,92.79223895,157.22,157.17,10.18044021]
[1752155404581,0.67,157.21,157.18,10.18044021]
[1752155404894,6.36051392,157.22,157.2,10.18044021]
[1752155405209,6.3597049,157.24,157.21,10.87044021]
[1752155405505,22.25896717,157.24,157.21,10.18044021]
[1752155405674,22.92896717,157.24,157.2,10.18044021]
[1752155405874,22.92896717,157.24,157.21,10.18044021]
[1752155406093,22.92896717,157.24,157.18,0.69]
[1752155406296,6.3597049,157.24,157.23,10.18044021]
[1752155406610,6.3597049,157.24,157.22,10.18044021]
[1752155406770,6.3597049,157.24,157.19,0.69]
[1752155406771,6.3597049,157.24,157.21,10.18044021]
[1752155406970,7.0297049,157.24,157.21,10.18044021]
[1752155407591,6.3597049,157.24,157.21,10.18044021]
[1752155407874,6.35939975,157.25,157.23,10.18044021]
[1752155408176,42.62615137,157.28,157.24,10.18044021]
[1752155408177,6.35849176,157.27,157.24,10.18044021]
[1752155408373,6.35849176,157.27,157.25,10.18044021]
[1752155409390,6.41822428,157.28,157.26,10.87044021]
[1752155409697,0.06,157.28,157.27,10.18044021]
[1752155410598,0.06,157.28,157.27,10.87044021]
[1752155413986,0.06,157.28,157.27,0.69]
[1752155414186,0.06,157.28,157.27,10.87044021]
[1752155414403,0.06,157.28,157.27,29.52008907]
[1752155414611,6.41480316,157.37,157.29,0.14216157]
[1752155414788,0.06,157.37,157.36,10.18044021]
[1752155415704,0.06,157.37,157.36,10.87044021]
[1752155417191,0.06,157.37,157.36,35.87494417]
[1752155417392,0.06,157.37,157.36,29.52008907]
[1752155417698,0.06,157.37,157.36,10.87044021]
[1752155417899,0.06,157.37,157.36,35.87494417]
[1752155418306,0.06,157.37,157.36,36.15926731]
[1752155418509,0.06,157.37,157.36,19.623972]
[1752155418808,0.06,157.37,157.36,29.52008907]
[1752155419400,0.06,157.37,157.36,35.87494417]
[1752155420026,0.06,157.37,157.36,36.15926731]
[1752155420200,0.2,157.4,157.37,18.933972]
[1752155420405,0.2,157.4,157.39,28.83008907]
[1752155420808,0.2,157.4,157.39,29.54008907]
[1752155422133,0.2,157.4,157.39,63.18008907]
[1752155423031,0.2,157.4,157.39,69.53373288]
[1752155423828,0.2,157.4,157.39,69.81805602]
[1752155424325,0.2,157.4,157.39,52.99964886]
[1752155424515,0.2,157.4,157.39,63.18008907]
[1752155424715,0.2,157.4,157.39,69.53373288]
[1752155425232,0.2,157.4,157.39,63.18008907]
[1752155425634,0.2,157.4,157.39,10.18044021]
[1752155425938,0.2,157.4,157.35,19.35964886]
[1752155425939,7.21324015,157.4,157.35,19.35964886]
[1752155426232,6.35404752,157.38,157.35,33.62]
[1752155426433,6.35404752,157.38,157.37,10.18044021]
[1752155427143,6.35376604,157.39,157.37,10.18044021]
[1752155427454,6.35376604,157.39,157.35,33.62]
[1752155427455,6.35376604,157.39,157.38,10.18044021]
[1752155427753,0.2,157.4,157.38,10.89044021]
[1752155427918,6.55332765,157.4,157.38,0.71]
[1752155428124,0.66,157.39,157.36,10.18044021]
[1752155428429,0.66,157.38,157.35,10.18044021]
[1752155428625,0.66,157.37,157.35,10.18044021]
[1752155429239,0.66,157.36,157.34,10.18044021]
[1752155430040,0.66,157.35,157.31,18.64964886]
[1752155430236,6.35566289,157.34,157.32,10.18044021]
[1752155430423,6.35566289,157.34,157.33,10.18044021]
[1752155430824,6.35566289,157.34,157.31,10.18044021]
[1752155430825,7.01566289,157.34,157.31,10.18044021]
[1752155431343,0.66,157.33,157.3,10.18044021]
[1752155431725,0.66,157.33,157.31,10.18044021]
[1752155431926,0.66,157.33,157.28,34.33]
[1752155432127,6.35687496,157.31,157.28,10.18044021]
[1752155432643,0.66,157.3,157.28,10.18044021]
[1752155433639,6.35687496,157.31,157.23,19.35964886]
[1752155433640,0.66,157.29,157.23,19.35964886]
[1752155433846,10.84044021,157.29,157.23,18.64964886]
[1752155434054,10.84044021,157.28,157.2,7.07117758]
[1752155434240,7.01849176,157.27,157.23,10.18044021]
[1752155434737,6.35849176,157.27,157.23,10.18044021]
[1752155434938,0.66,157.29,157.26,10.18044021]
[1752155435143,0.66,157.29,157.27,10.18044021]
[1752155435450,0.66,157.29,157.26,10.18044021]
[1752155435954,6.35808748,157.28,157.26,10.18044021]
[1752155436973,6.35808748,157.28,157.25,10.18044021]
[1752155437253,6.35808748,157.28,157.26,10.18044021]
[1752155438853,7.01808748,157.28,157.25,10.18044021]
[1752155439034,10.84044021,157.27,157.22,10.18044021]
[1752155439358,0.66,157.26,157.22,10.18044021]
[1752155440056,7.01925386,157.26,157.25,0.03]
[1752155441154,0.66,157.26,157.25,0.03]
[1752155442151,15.8929112,157.31,157.25,0.03]
[1752155442152,7.01783852,157.29,157.25,10.21044021]
[1752155442460,7.01566289,157.34,157.28,10.18044021]
[1752155442648,7.01566289,157.34,157.32,10.18044021]
[1752155443056,0.66,157.33,157.31,10.18044021]
[1752155443367,6.35566289,157.34,157.32,10.18044021]
[1752155443368,0.66,157.34,157.32,10.18044021]
[1752155443536,15.94707698,157.37,157.33,10.18044021]
[1752155443537,0.06,157.37,157.33,10.18044021]
[1752155443862,0.06,157.37,157.36,10.18044021]
[1752155446244,0.06,157.37,157.36,17.24529531]
[1752155446461,0.06,157.37,157.36,29.54008907]
[1752155446653,0.06,157.37,157.36,10.18044021]
[1752155447552,0.06,157.37,157.36,10.89044021]
[1752155448065,0.06,157.37,157.36,17.24529531]
[1752155448251,0.06,157.37,157.36,10.89044021]
[1752155448452,0.06,157.37,157.36,10.18044021]
[1752155450012,0.77,157.37,157.32,18.64964886]
[1752155450304,0.77,157.37,157.35,10.18044021]
[1752155450778,0.71,157.36,157.32,10.18044021]
[1752155450960,0.71,157.35,157.32,10.18044021]
[1752155451160,0.71,157.35,157.29,18.64964886]
[1752155451386,0.71,157.35,157.32,10.18044021]
[1752155451685,0.06,157.37,157.34,10.18044021]
[1752155451879,0.06,157.37,157.35,10.18044021]
[1752155452093,0.06,157.37,157.36,10.18044021]
[1752155453188,0.06,157.37,157.36,10.90044021]
[1752155454083,0.06,157.37,157.36,10.18044021]
[1752155456666,0.06,157.37,157.36,10.90044021]
[1752155456871,0.06,157.37,157.36,17.25529531]
[1752155458272,0.06,157.37,157.36,10.90044021]
[1752155458676,0.06,157.37,157.36,10.18044021]
[1752155459068,0.06,157.37,157.36,10.90044021]
[1752155459274,0.06,157.37,157.36,35.90494417]
[1752155460293,0.06,157.37,157.36,62.18926731]
[1752155461285,0.2,157.44,157.4,44.64964886]
[1752155461488,0.2,157.44,157.43,54.83008907]
[1752155462071,0.2,157.44,157.43,55.55008907]
[1752155462565,0.2,157.44,157.43,54.83008907]
[1752155462887,0.2,157.44,157.43,95.10211854]
[1752155463065,0.2,157.44,157.43,96.10644168]
[1752155465590,0.06,157.46,157.44,0.28432314]
[1752155465808,0.06,157.46,157.45,62.73008907]
[1752155466105,0.06,157.46,157.45,63.73441221]
[1752155466310,0.06,157.46,157.45,70.08563482]
[1752155466500,0.06,157.46,157.45,96.08563482]
[1752155466795,0.2,157.53,157.48,44.64964886]
[1752155467002,0.2,157.53,157.48,52.52964886]
[1752155467292,7.25830083,157.53,157.48,62.71008907]
[1752155467497,6.34843357,157.52,157.48,62.71008907]
[1752155468089,7.25809408,157.53,157.48,62.71008907]
[1752155468392,7.25809408,157.53,157.48,63.43008907]
[1752155468898,0.2,157.53,157.48,18.64964886]
[1752155469113,7.25974266,157.49,157.42,0.72]
[1752155469411,7.25974266,157.49,157.43,18.64964886]
[1752155469610,7.25974266,157.49,157.47,10.18044021]
[1752155469783,0.71,157.48,157.47,10.18044021]
[1752155470497,7.0600127,157.48,157.47,10.18044021]
[1752155470702,7.0600127,157.48,157.45,10.18044021]
[1752155470875,0.71,157.47,157.46,10.18044021]
[1752155471391,0.71,157.47,157.44,33.88]
[1752155472476,7.06055319,157.47,157.44,33.88]
[1752155472675,7.06055319,157.47,157.46,10.18044021]
[1752155472880,0.71,157.47,157.46,10.18044021]
[1752155473309,6.35009182,157.48,157.46,10.18044021]
[1752155473717,7.06009182,157.48,157.46,10.18044021]
[1752155473890,0.71,157.48,157.47,10.18044021]
[1752155474212,0.2,157.49,157.48,18.64964886]
[1752155474385,0.91,157.49,157.47,10.18044021]
[1752155474587,0.2,157.49,157.47,10.18044021]
[1752155474791,0.71,157.48,157.47,10.18044021]
[1752155475523,6.54972872,157.49,157.47,10.18044021]
[1752155475806,0.71,157.48,157.46,33.84]
[1752155476008,0.71,157.47,157.46,33.84]
[1752155476197,0.71,157.47,157.45,10.18044021]
[1752155476399,0.71,157.46,157.45,10.18044021]
[1752155476604,0.71,157.48,157.45,10.18044021]
[1752155476890,0.71,157.47,157.45,10.18044021]
[1752155477329,16.73016893,157.49,157.45,10.18044021]
[1752155477485,0.71,157.48,157.45,10.18044021]
[1752155477687,0.2,157.49,157.47,10.18044021]
[1752155478106,0.91,157.49,157.47,10.18044021]
[1752155478315,7.25961914,157.49,157.45,18.64964886]
[1752155478511,0.71,157.48,157.46,10.18044021]
[1752155478687,0.71,157.48,157.45,10.18044021]
[1752155478890,0.68,157.47,157.45,10.18044021]
[1752155479621,6.35012368,157.48,157.46,10.18044021]
[1752155479825,7.03012368,157.48,157.47,10.18044021]
[1752155480020,0.2,157.49,157.47,10.18044021]
[1752155480021,6.54975935,157.49,157.47,10.18044021]
[1752155480211,7.22975935,157.49,157.47,10.18044021]
[1752155481133,0.2,157.49,157.48,10.18044021]
[1752155483635,0.2,157.49,157.48,10.84044021]
[1752155484414,0.2,157.49,157.48,35.84010177]
[1752155485033,0.2,157.49,157.48,29.49008907]
[1752155485334,0.2,157.49,157.48,35.84010177]
[1752155485633,0.2,157.49,157.48,69.60010177]
[1752155485934,0.2,157.49,157.48,69.88442491]
[1752155486438,0.2,157.53,157.52,18.64964886]
[1752155486639,0.2,157.53,157.52,62.85441221]
[1752155486897,2.2251,157.62,157.53,0.28432314]
[1752155487095,2.2251,157.62,157.6,10.18044021]
[1752155487600,0.68,157.61,157.58,33.76]
[1752155487882,0.68,157.6,157.59,10.18044021]
[1752155488261,8.56961066,157.62,157.59,10.18044021]
[1752155488454,0.68,157.61,157.59,10.18044021]
[1752155488656,0.68,157.61,157.6,10.18044021]
[1752155489085,0.68,157.61,157.58,33.76]
[1752155489379,7.88961066,157.62,157.6,10.18044021]
[1752155489581,0.88,157.65,157.61,10.18044021]
[1752155489881,0.88,157.65,157.63,10.18044021]
[1752155489882,0.68,157.64,157.63,10.18044021]
[1752155490665,10.86044021,157.64,157.59,10.18044021]
[1752155490863,0.68,157.63,157.58,10.18044021]
[1752155491384,48.40117278,157.65,157.62,10.18044021]
[1752155491385,23.08117278,157.65,157.62,10.18044021]
[1752155491691,0.68,157.64,157.62,10.18044021]
[1752155491997,0.68,157.63,157.61,10.18044021]
[1752155492300,0.68,157.62,157.59,10.18044021]
[1752155492477,0.68,157.62,157.58,43.90044021]
[1752155492668,10.18044021,157.63,157.58,43.90044021]
[1752155492873,0.68,157.61,157.53,33.00026157]
[1752155493174,0.68,157.61,157.58,10.18044021]
[1752155493566,6.3455803,157.59,157.58,10.18044021]
[1752155494183,7.0255803,157.59,157.54,58.71720997]
[1752155494385,6.3455803,157.59,157.57,10.18044021]
[1752155494771,6.34517766,157.6,157.57,10.18044021]
[1752155494988,7.02517766,157.6,157.57,10.18044021]
[1752155495189,6.34356762,157.64,157.59,10.18044021]
[1752155495398,6.34356762,157.64,157.62,10.18044021]
[1752155495572,6.34356762,157.64,157.57,33.76]
[1752155495573,7.02356762,157.64,157.61,10.18044021]
[1752155495777,7.02356762,157.64,157.6,44.00044021]
[1752155495778,0.68,157.63,157.6,44.00044021]
[1752155495973,6.34356762,157.64,157.51,11.5244]
[1752155495974,10.86044021,157.62,157.54,0.66]
[1752155496175,10.86044021,157.61,157.56,10.18044021]
[1752155496502,0.68,157.6,157.56,10.18044021]
[1752155496678,7.0255803,157.59,157.56,10.18044021]
[1752155498468,0.68,157.58,157.55,52.52964886]
[1752155498666,0.68,157.58,157.56,10.18044021]
[1752155498867,6.3455803,157.59,157.56,10.18044021]
[1752155499282,0.68,157.58,157.55,33.84]
[1752155499483,0.68,157.58,157.56,10.18044021]
[1752155499680,6.3455803,157.59,157.55,33.84]
[1752155499884,7.0255803,157.59,157.56,10.18044021]
[1752155500396,0.68,157.58,157.56,10.18044021]
[1752155500597,0.68,157.61,157.57,10.18044021]
[1752155500787,0.68,157.6,157.57,10.18044021]
[1752155501301,0.68,157.6,157.56,10.18044021]
[1752155501502,0.68,157.59,157.56,10.18044021]
[1752155501877,0.68,157.58,157.52,0.66]
[1752155502205,0.68,157.58,157.55,10.18044021]
[1752155502500,0.68,157.58,157.53,18.64964886]
[1752155502501,6.3455803,157.59,157.56,10.18044021]
[1752155502716,0.68,157.58,157.55,33.8]
[1752155503005,0.68,157.58,157.55,43.98044021]
[1752155503300,0.68,157.57,157.51,26.66]
[1752155503473,0.68,157.57,157.53,10.18044021]
[1752155503878,0.68,157.57,157.53,26.0]
[1752155504100,0.68,157.56,157.54,10.18044021]
[1752155504404,0.68,157.56,157.53,43.94044021]
[1752155504600,7.02716451,157.56,157.51,19.30964886]
[1752155504786,0.68,157.55,157.53,10.18044021]
[1752155505385,6.34716451,157.56,157.53,10.18044021]
[1752155505784,7.02716451,157.56,157.53,10.21044021]
[1752155506691,6.34649884,157.57,157.55,10.18044021]
[1752155507212,2.2898,157.6,157.56,10.18044021]
[1752155507519,6.34572997,157.59,157.57,10.18044021]
[1752155507807,6.34572997,157.59,157.58,10.18044021]
[1752155508109,6.34572997,157.59,157.57,10.18044021]
[1752155508609,0.68,157.58,157.56,10.18044021]
[1752155508815,0.68,157.58,157.53,0.03]
[1752155509107,10.18044021,157.57,157.53,0.03]
[1752155509288,0.71,157.56,157.53,0.03]
[1752155509795,0.71,157.55,157.53,0.03]
[1752155510307,7.05727154,157.55,157.53,0.03]
[1752155512210,10.89044021,157.54,157.53,0.03]
[1752155512400,17.23803447,157.54,157.53,0.03]
[1752155512884,7.05759426,157.54,157.53,0.03]
[1752155513204,17.23803447,157.54,157.53,0.03]
[1752155513420,7.05759426,157.54,157.53,0.03]
[1752155513603,17.23803447,157.54,157.53,0.03]
[1752155515402,7.05759426,157.54,157.53,0.03]
[1752155516509,17.23803447,157.54,157.53,0.03]
[1752155517503,17.52235761,157.54,157.53,0.03]
[1752155517695,17.52235761,157.54,157.45,0.69]
[1752155517696,33.39134326,157.54,157.45,0.69]
[1752155517897,10.18044021,157.51,157.47,10.18044021]
[1752155518202,0.71,157.5,157.47,10.18044021]
[1752155518404,0.71,157.5,157.45,0.69]
[1752155518608,0.71,157.49,157.46,10.18044021]
[1752155518812,6.35041595,157.47,157.45,10.18044021]
[1752155518996,6.35041595,157.47,157.45,6.78180975]
[1752155520008,6.35016736,157.48,157.45,6.78180975]
[1752155520514,0.71,157.47,157.4,2.2971]
[1752155520719,6.78180975,157.44,157.38,8.85890433]
[1752155520909,7.49180975,157.43,157.39,6.78180975]
[1752155521113,7.49180975,157.42,157.38,6.78180975]
[1752155521295,0.14216157,157.45,157.38,6.78180975]
[1752155521498,0.71,157.41,157.38,6.78180975]
[1752155521794,13.84415189,157.43,157.38,6.78180975]
[1752155522317,0.71,157.42,157.38,6.78180975]
[1752155523017,7.06270256,157.42,157.38,10.18129771]
[1752155523435,12.45469771,157.46,157.41,10.18129771]
[1752155523597,6.35041595,157.47,157.44,10.18129771]
[1752155524016,0.71,157.46,157.43,10.18129771]
[1752155524394,0.71,157.45,157.43,10.18129771]
[1752155524716,16.53171366,157.47,157.43,10.18129771]
[1752155524717,7.06041595,157.47,157.43,10.18129771]
[1752155525495,0.71,157.46,157.43,10.18129771]
[1752155525701,16.53171366,157.47,157.43,10.18129771]
[1752155525916,7.06041595,157.47,157.43,10.18129771]
[1752155526221,0.71,157.46,157.43,10.18129771]
[1752155526405,16.53171366,157.47,157.43,10.18129771]
[1752155526603,7.06120586,157.46,157.43,10.18129771]
[1752155527009,0.71,157.45,157.43,10.18129771]
[1752155527198,0.71,157.45,157.38,32.35404022]
[1752155527523,10.89129771,157.45,157.41,10.18129771]
[1752155527698,0.71,157.45,157.41,10.18129771]
[1752155528017,0.71,157.45,157.39,0.69]
[1752155528018,0.71,157.44,157.37,18.74964886]
[1752155528236,10.18129771,157.41,157.37,10.28129771]
[1752155528397,10.89129771,157.41,157.37,10.28129771]
[1752155528713,7.06294709,157.41,157.37,10.28129771]
[1752155529223,0.71,157.4,157.37,10.28129771]
[1752155529605,6.35294709,157.41,157.37,10.28129771]
[1752155529906,0.71,157.44,157.39,10.18129771]
[1752155530118,0.71,157.43,157.39,10.18129771]
[1752155530305,10.89129771,157.43,157.39,10.18129771]
[1752155530620,6.35010076,157.48,157.42,16.53364927]
[1752155530914,6.35010076,157.48,157.42,7.04235156]
[1752155531122,16.53139847,157.48,157.43,10.18129771]
[1752155531300,0.71,157.47,157.43,10.18129771]
[1752155531505,0.71,157.47,157.44,10.18129771]
[1752155532203,6.35081815,157.47,157.44,10.18129771]
[1752155532411,0.71,157.46,157.43,10.18129771]
[1752155532613,0.71,157.45,157.42,10.18129771]
[1752155533305,0.71,157.45,157.4,6.35312088]
[1752155533511,6.351449,157.45,157.39,52.97964886]
[1752155533820,0.71,157.44,157.4,10.18129771]
[1752155534030,0.71,157.43,157.37,18.74964886]
[1752155534223,0.71,157.43,157.37,10.28129771]
[1752155534224,10.18129771,157.42,157.37,10.28129771]
[1752155534398,10.89129771,157.42,157.37,10.28129771]
[1752155534729,10.89129771,157.42,157.38,10.18129771]
[1752155534933,0.71,157.42,157.39,10.18129771]
[1752155535132,0.71,157.42,157.37,0.1]
[1752155535133,10.18129771,157.43,157.38,10.18129771]
[1752155535334,1.6057,157.44,157.38,10.18129771]
[1752155535335,0.71,157.41,157.38,10.18129771]
[1752155535513,6.35324015,157.4,157.38,10.18129771]
[1752155536102,7.06299292,157.41,157.38,10.18129771]
[1752155538427,0.71,157.4,157.37,0.1]
[1752155538632,0.71,157.39,157.37,0.1]
[1752155539227,10.90129771,157.38,157.37,0.1]
[1752155540817,51.17966837,157.38,157.36,1e-08]
[1752155541012,12.41449771,157.37,157.36,1e-08]
[1752155542214,12.69882085,157.37,157.36,1e-08]
[1752155542940,45.05327214,157.37,157.36,1e-08]
[1752155543522,63.702921,157.37,157.36,1e-08]
[1752155546529,34.87197443,157.37,157.36,1e-08]
[1752155546739,45.05327214,157.37,157.36,1e-08]
[1752155549152,8.58765129,157.37,157.36,1e-08]
[1752155549449,17.255749,157.37,157.36,1e-08]
[1752155549651,17.255749,157.37,157.36,4.96684506]
[1752155549836,17.255749,157.37,157.36,1e-08]
[1752155550532,43.255749,157.37,157.36,1e-08]
[1752155550740,76.895749,157.37,157.36,1e-08]
[1752155551049,16.535749,157.37,157.36,1e-08]
[1752155551529,17.255749,157.37,157.36,1e-08]
[1752155551729,51.03791057,157.37,157.36,1e-08]
[1752155551930,77.03791057,157.37,157.36,1e-08]
[1752155552653,77.18007214,157.37,157.36,1e-08]
[1752155553443,76.895749,157.37,157.36,1e-08]
[1752155553837,43.255749,157.37,157.36,1e-08]
[1752155554039,16.535749,157.37,157.36,1e-08]
[1752155554253,17.255749,157.37,157.36,1e-08]
[1752155555628,76.895749,157.37,157.36,1e-08]
[1752155555828,77.03791057,157.37,157.36,1e-08]
[1752155556049,76.895749,157.37,157.36,1e-08]
[1752155556441,43.255749,157.37,157.36,1e-08]
[1752155558056,76.175749,157.37,157.36,1e-08]
[1752155558262,42.535749,157.37,157.36,1e-08]
[1752155558442,16.535749,157.37,157.36,1e-08]
[1752155559033,17.255749,157.37,157.36,1e-08]
[1752155559238,16.535749,157.37,157.36,1e-08]
[1752155559736,17.255749,157.37,157.36,1e-08]
[1752155559956,16.535749,157.37,157.36,1e-08]
[1752155560153,17.255749,157.37,157.36,1e-08]
[1752155560963,17.39791057,157.37,157.36,1e-08]
[1752155561635,62.04755943,157.37,157.36,1e-08]
[1752155562736,43.39791057,157.37,157.36,1e-08]
[1752155563741,62.189721,157.37,157.36,1e-08]
[1752155563937,36.189721,157.37,157.36,1e-08]
[1752155566936,32.80461308,157.37,157.36,1e-08]
[1752155570264,32.35445129,157.37,157.36,1e-08]
[1752155570469,6.41445129,157.37,157.36,1e-08]
[1752155570965,0.06,157.37,157.36,7.5061898]
[1752155571159,0.06,157.37,157.36,14.30237959]
[1752155571356,0.06,157.37,157.36,7.5061898]
[1752155572847,0.06,157.37,157.36,10.89305835]